fUST/lending_fUST_20250719
["ID","MTS","AMOUNT","RATE_DAILY","PERIOD"]
[373080981,1752856242832,-460.0,0.00017011,2]
[373080982,1752856242842,-608.16,0.00017011,2]
[373080984,1752856242852,-460.0,0.00017011,2]
[373080986,1752856242863,-460.0,0.00017011,2]
[373080988,1752856242874,-356.33021345,0.00017011,2]
[373080991,1752856242884,-460.0,0.00017011,2]
[373080992,1752856242893,-460.0,0.00017011,2]
[373080994,1752856242903,-460.0,0.00017011,2]
[373080996,1752856242912,-460.0,0.00017011,2]
[373080998,1752856242922,-460.0,0.00017011,2]
[373081001,1752856242931,-460.0,0.00017011,2]
[373081002,1752856242940,-460.0,0.00017011,2]
[373081005,1752856242951,-460.0,0.00017011,2]
[373081006,1752856242960,-460.0,0.00017011,2]
[373081008,1752856242969,-460.0,0.00017011,2]
[373081011,1752856242979,-598.91,0.00017011,2]
[373081013,1752856242988,-460.0,0.00017011,2]
[373081016,1752856242998,-460.0,0.00017011,2]
[373081018,1752856243007,-460.0,0.00017011,2]
[373081021,1752856243016,-467.11744404,0.00017011,2]
[373081022,1752856243025,-460.0,0.00017011,2]
[373081025,1752856243035,-460.0,0.00017011,2]
[373081026,1752856243044,-557.15,0.00017011,2]
[373081028,1752856243053,-786.55,0.00017011,2]
[373081031,1752856243063,-460.0,0.00017011,2]
[373081033,1752856243072,-460.0,0.00017012,2]
[373081035,1752856243082,-460.0,0.00017012,2]
[373081037,1752856243091,-460.0,0.00017012,2]
[373081038,1752856243100,-604.29,0.00017012,2]
[373081040,1752856243110,-565.96,0.00017012,2]
[373081042,1752856243119,-460.0,0.00017012,2]
[373081045,1752856243128,-460.0,0.00017012,2]
[373081047,1752856243138,-460.0,0.00017012,2]
[373081049,1752856243148,-290.46240012,0.00017012,2]
[373081051,1752856243157,-460.0,0.00017012,2]
[373081054,1752856243166,-460.0,0.00017012,2]
[373081056,1752856243175,-292.11911566,0.00017012,2]
[373081059,1752856243185,-460.0,0.00017012,2]
[373081061,1752856243195,-460.0,0.00017012,2]
[373081063,1752856243204,-460.0,0.00017012,2]
[373081065,1752856243214,-460.0,0.00017012,2]
[373081067,1752856243223,-460.0,0.00017012,2]
[373081069,1752856243233,-698.51,0.00017012,2]
[373081070,1752856243242,-460.0,0.00017012,2]
[373081074,1752856243252,-277.16928204,0.00017012,2]
[373081076,1752856243261,-460.0,0.00017012,2]
[373081078,1752856243270,-460.0,0.00017012,2]
[373081079,1752856243279,-460.0,0.00017012,2]
[373081080,1752856243289,-460.0,0.00017012,2]
[373081081,1752856243299,-460.0,0.00017012,2]
[373081082,1752856243309,-460.0,0.00017012,2]
[373081083,1752856243318,-460.0,0.00017012,2]
[373081084,1752856243327,-460.0,0.00017012,2]
[373081085,1752856243336,-460.0,0.00017012,2]
[373081086,1752856243346,-460.0,0.00017012,2]
[373081087,1752856243354,-477.92,0.00017012,2]
[373081088,1752856243363,-582.44,0.00017012,2]
[373081089,1752856243372,-460.0,0.00017012,2]
[373081090,1752856243381,-460.0,0.00017012,2]
[373081091,1752856243391,-460.0,0.00017012,2]
[373081092,1752856243401,-460.0,0.00017012,2]
[373081093,1752856243410,-949.81,0.00017012,2]
[373081094,1752856243420,-460.0,0.00017012,2]
[373081095,1752856243429,-1689.1,0.00017012,2]
[373081096,1752856243438,-460.0,0.00017012,2]
[373081097,1752856243448,-225.03069426,0.00017012,2]
[373081098,1752856243458,-577.4,0.00017012,2]
[373081100,1752856243468,-460.0,0.00017012,2]
[373081101,1752856243477,-460.0,0.00017012,2]
[373081103,1752856243486,-460.0,0.00017012,2]
[373081105,1752856243495,-586.55139319,0.00017012,2]
[373081107,1752856243505,-304.0587969,0.00017012,2]
[373081109,1752856243514,-471.57,0.00017012,2]
[373081111,1752856243524,-460.0,0.00017012,2]
[373081113,1752856243533,-460.0,0.00017012,2]
[373081115,1752856243542,-460.0,0.00017013,2]
[373081117,1752856243552,-2734.91,0.00017014,2]
[373081119,1752856243561,-827.63,0.00017014,2]
[373081121,1752856243571,-1208.84,0.00017014,2]
[373081123,1752856243580,-1820.77,0.00017015,2]
[373081125,1752856243589,-460.0,0.00017015,2]
[373081127,1752856243598,-1526.41,0.00017015,2]
[373081129,1752856243607,-2703.23,0.00017015,2]
[373081131,1752856243617,-934.77,0.00017018,2]
[373081133,1752856243626,-333.0,0.00017053,2]
[373081135,1752856243636,-500.33609698,0.00017139,2]
[373081137,1752856243645,-500.0,0.00017139,2]
[373081139,1752856243654,-500.0,0.00017139,2]
[373081141,1752856243664,-504.38663439,0.00017142,2]
[373081143,1752856243673,-500.0,0.00017163,2]
[373081145,1752856243683,-500.0,0.00017163,2]
[373081147,1752856243692,-1321.85775104,0.00017176,2]
[373081149,1752856243705,-500.0,0.00017245,2]
[373081151,1752856243714,-460.0,0.00017283,2]
[373081153,1752856243724,-460.0,0.00017283,2]
[373081155,1752856243733,-1481.43,0.00017283,2]
[373081157,1752856243743,-460.0,0.00017283,2]
[373081159,1752856243752,-1820.48,0.00017284,2]
[373081161,1752856243762,-536.49,0.00017284,2]
[373081163,1752856243772,-460.0,0.00017284,2]
[373081165,1752856243782,-1583.05,0.00017284,2]
[373081167,1752856243793,-3439.94,0.00017284,2]
[373081169,1752856243804,-460.0,0.00017284,2]
[373081171,1752856243815,-1425.41,0.00017284,2]
[373081173,1752856243824,-519.49257554,0.00017284,2]
[373081175,1752856243833,-460.0,0.00017284,2]
[373081177,1752856243845,-1698.66,0.00017284,2]
[373081179,1752856243854,-358.93871798,0.00017285,2]
[373081181,1752856243864,-460.0,0.00017285,2]
[373081183,1752856243874,-460.0,0.00017285,2]
[373081185,1752856243885,-368.71006495,0.00017285,2]
[373081187,1752856243895,-460.0,0.00017285,2]
[373081189,1752856243906,-460.0,0.00017285,2]
[373081191,1752856243916,-485.57,0.00017285,2]
[373081193,1752856243926,-460.0,0.00017285,2]
[373081195,1752856243935,-460.0,0.00017285,2]
[373081207,1752856244038,-608.16,0.00017285,2]
[373081209,1752856244048,-460.0,0.00017285,2]
[373081211,1752856244058,-460.0,0.00017285,2]
[373081213,1752856244067,-460.0,0.00017285,2]
[373081215,1752856244077,-460.0,0.00017285,2]
[373081217,1752856244087,-460.0,0.00017285,2]
[373081219,1752856244097,-460.0,0.00017285,2]
[373081221,1752856244107,-460.0,0.00017285,2]
[373081223,1752856244116,-512.89393404,0.00017285,2]
[373081225,1752856244126,-460.0,0.00017285,2]
[373081227,1752856244135,-460.0,0.00017285,2]
[373081229,1752856244145,-460.0,0.00017285,2]
[373081231,1752856244154,-598.91,0.00017285,2]
[373081233,1752856244165,-460.0,0.00017285,2]
[373081235,1752856244175,-460.0,0.00017285,2]
[373081237,1752856244185,-460.0,0.00017285,2]
[373081239,1752856244194,-460.0,0.00017285,2]
[373081241,1752856244205,-786.55,0.00017285,2]
[373081243,1752856244215,-471.94,0.00017285,2]
[373081245,1752856244225,-460.0,0.00017286,2]
[373081247,1752856244235,-460.0,0.00017286,2]
[373081249,1752856244244,-460.0,0.00017286,2]
[373081251,1752856244254,-460.0,0.00017286,2]
[373081253,1752856244263,-460.0,0.00017286,2]
[373081255,1752856244274,-460.0,0.00017286,2]
[373081257,1752856244284,-515.13459277,0.00017286,2]
[373081259,1752856244293,-460.0,0.00017286,2]
[373081261,1752856244303,-462.34,0.00017286,2]
[373081263,1752856244313,-698.51,0.00017286,2]
[373081265,1752856244323,-460.0,0.00017286,2]
[373081267,1752856244335,-460.0,0.00017286,2]
[373081269,1752856244344,-460.0,0.00017286,2]
[373081271,1752856244354,-460.0,0.00017286,2]
[373081273,1752856244363,-460.0,0.00017286,2]
[373081275,1752856244373,-460.0,0.00017286,2]
[373081278,1752856244383,-460.0,0.00017286,2]
[373081280,1752856244392,-460.0,0.00017286,2]
[373081282,1752856244402,-460.0,0.00017286,2]
[373081284,1752856244411,-477.92,0.00017286,2]
[373081285,1752856244421,-582.44,0.00017286,2]
[373081287,1752856244430,-460.0,0.00017286,2]
[373081289,1752856244440,-460.0,0.00017286,2]
[373081291,1752856244451,-460.0,0.00017286,2]
[373081293,1752856244461,-550.56687725,0.00017286,2]
[373081295,1752856244470,-949.81,0.00017286,2]
[373081297,1752856244480,-1689.1,0.00017286,2]
[373081299,1752856244490,-460.0,0.00017286,2]
[373081302,1752856244499,-577.4,0.00017286,2]
[373081304,1752856244510,-460.0,0.00017286,2]
[373081306,1752856244519,-460.0,0.00017286,2]
[373081307,1752856244528,-471.57,0.00017286,2]
[373081309,1752856244538,-460.0,0.00017286,2]
[373081312,1752856244548,-460.0,0.00017287,2]
[373081313,1752856244557,-2734.91,0.00017288,2]
[373081315,1752856244567,-827.63,0.00017288,2]
[373081318,1752856244578,-1208.84,0.00017288,2]
[373081320,1752856244587,-1820.77,0.00017289,2]
[373081321,1752856244596,-460.0,0.00017289,2]
[373081323,1752856244606,-1526.41,0.00017289,2]
[373081325,1752856244615,-2703.23,0.00017289,2]
[373081328,1752856244625,-934.77,0.00017292,2]
[373081329,1752856244635,-7695.17954686,0.00017292,2]
[373081331,1752856244645,-500.0,0.00017308,2]
[373081333,1752856244654,-1321.85775104,0.00017452,2]
[373081335,1752856244663,-460.0,0.00017557,2]
[373081338,1752856244673,-460.0,0.00017557,2]
[373081340,1752856244683,-1481.43,0.00017557,2]
[373081342,1752856244693,-460.0,0.00017557,2]
[373081344,1752856244705,-1820.48,0.00017558,2]
[373081346,1752856244715,-536.49,0.00017558,2]
[373081348,1752856244724,-460.0,0.00017558,2]
[373081349,1752856244734,-1583.05,0.00017558,2]
[373081352,1752856244745,-3439.94,0.00017558,2]
[373081354,1752856244754,-460.0,0.00017558,2]
[373081356,1752856244764,-1425.41,0.00017558,2]
[373081358,1752856244773,-460.0,0.00017558,2]
[373081360,1752856244783,-1698.66,0.00017558,2]
[373081362,1752856244794,-460.0,0.00017559,2]
[373081363,1752856244805,-460.0,0.00017559,2]
[373081365,1752856244814,-460.0,0.00017559,2]
[373081367,1752856244824,-460.0,0.00017559,2]
[373081370,1752856244833,-316.4811283,0.00017559,2]
[373081372,1752856244844,-460.0,0.00017559,2]
[373081373,1752856244854,-608.16,0.00017559,2]
[373081375,1752856244864,-460.0,0.00017559,2]
[373081378,1752856244875,-460.0,0.00017559,2]
[373081380,1752856244885,-460.0,0.00017559,2]
[373081382,1752856244895,-460.0,0.00017559,2]
[373081384,1752856244904,-384.94577825,0.00017559,2]
[373081385,1752856244913,-460.0,0.00017559,2]
[373081387,1752856244923,-460.0,0.00017559,2]
[373081390,1752856244932,-460.0,0.00017559,2]
[373081392,1752856244941,-460.0,0.00017559,2]
[373081393,1752856244951,-460.0,0.00017559,2]
[373081395,1752856244960,-598.91,0.00017559,2]
[373081397,1752856244970,-460.0,0.00017559,2]
[373081399,1752856244980,-460.0,0.00017559,2]
[373081401,1752856244990,-460.0,0.00017559,2]
[373081403,1752856245000,-460.0,0.00017559,2]
[373081405,1752856245009,-786.55,0.00017559,2]
[373081407,1752856245019,-460.0,0.0001756,2]
[373081410,1752856245028,-602.28752327,0.0001756,2]
[373081411,1752856245038,-460.0,0.0001756,2]
[373081414,1752856245047,-460.0,0.0001756,2]
[373081415,1752856245056,-460.0,0.0001756,2]
[373081417,1752856245066,-501.04513191,0.0001756,2]
[373081419,1752856245075,-698.51,0.0001756,2]
[373081421,1752856245086,-289.74,0.0001756,2]
[373081424,1752856245096,-300.48618497,0.0001756,2]
[373081426,1752856245106,-460.0,0.0001756,2]
[373081427,1752856245115,-460.0,0.0001756,2]
[373081429,1752856245125,-460.0,0.0001756,2]
[373081432,1752856245135,-470.00240161,0.0001756,2]
[373081433,1752856245144,-460.0,0.0001756,2]
[373081435,1752856245153,-477.92,0.0001756,2]
[373081437,1752856245163,-582.44,0.0001756,2]
[373081439,1752856245172,-460.0,0.0001756,2]
[373081441,1752856245182,-460.0,0.0001756,2]
[373081443,1752856245191,-460.0,0.0001756,2]
[373081445,1752856245201,-949.81,0.0001756,2]
[373081447,1752856245211,-1689.1,0.0001756,2]
[373081449,1752856245220,-460.0,0.0001756,2]
[373081451,1752856245230,-577.4,0.0001756,2]
[373081453,1752856245239,-460.0,0.0001756,2]
[373081455,1752856245249,-460.0,0.0001756,2]
[373081457,1752856245258,-471.57,0.0001756,2]
[373081459,1752856245268,-460.0,0.00017561,2]
[373081461,1752856245277,-2734.91,0.00017562,2]
[373081463,1752856245287,-827.63,0.00017562,2]
[373081465,1752856245299,-1208.84,0.00017562,2]
[373081467,1752856245309,-1820.77,0.00017563,2]
[373081469,1752856245318,-460.0,0.00017563,2]
[373081471,1752856245328,-1526.41,0.00017563,2]
[373081473,1752856245338,-2703.23,0.00017563,2]
[373081475,1752856245347,-934.77,0.00017566,2]
[373081477,1752856245357,-151.0,0.00017581,2]
[373081479,1752856245366,-151.0,0.00017581,2]
[373081481,1752856245376,-151.0,0.00017581,2]
[373081483,1752856245385,-2086.69878885,0.00017619,2]
[373081485,1752856245394,-399.18964226,0.00017673,2]
[373081487,1752856245403,-186.62240602,0.00017687,2]
[373081489,1752856245412,-504.70318548,0.00017687,2]
[373081491,1752856245421,-500.0,0.00017711,2]
[373081493,1752856245430,-1321.85775104,0.00017728,2]
[373081495,1752856245439,-31681.25234506,0.00017735,2]
[373081497,1752856245450,-1000.0,0.00017793,2]
[373081499,1752856245459,-460.0,0.00017831,2]
[373081501,1752856245469,-1481.43,0.00017831,2]
[373081503,1752856245478,-460.0,0.00017831,2]
[373081505,1752856245487,-1820.48,0.00017832,2]
[373081507,1752856245497,-536.49,0.00017832,2]
[373081509,1752856245507,-460.0,0.00017832,2]
[373081511,1752856245516,-1583.05,0.00017832,2]
[373081513,1752856245526,-3439.94,0.00017832,2]
[373081515,1752856245537,-460.0,0.00017832,2]
[373081517,1752856245546,-1425.41,0.00017832,2]
[373081519,1752856245555,-460.0,0.00017832,2]
[373081521,1752856245565,-1698.66,0.00017832,2]
[373081523,1752856245574,-460.0,0.00017833,2]
[373081525,1752856245584,-460.0,0.00017833,2]
[373081527,1752856245593,-190.51170626,0.00017833,2]
[373081529,1752856245603,-460.0,0.00017833,2]
[373081531,1752856245612,-608.16,0.00017833,2]
[373081533,1752856245621,-203.65341483,0.00017833,2]
[373081535,1752856245630,-547.06594916,0.00017833,2]
[373081537,1752856245639,-281.4560135,0.00017833,2]
[373081539,1752856245649,-460.0,0.00017833,2]
[373081541,1752856245658,-460.0,0.00017833,2]
[373081543,1752856245667,-218.27,0.00017833,2]
[373081545,1752856245677,-460.0,0.00017833,2]
[373081547,1752856245687,-598.91,0.00017833,2]
[373081549,1752856245696,-460.0,0.00017833,2]
[373081551,1752856245706,-460.0,0.00017833,2]
[373081553,1752856245716,-460.0,0.00017833,2]
[373081555,1752856245725,-460.0,0.00017833,2]
[373081557,1752856245735,-786.55,0.00017833,2]
[373081559,1752856245744,-422.86409404,0.00017834,2]
[373081561,1752856245753,-460.0,0.00017834,2]
[373081563,1752856245763,-460.0,0.00017834,2]
[373081565,1752856245773,-698.51,0.00017834,2]
[373081567,1752856245783,-460.0,0.00017834,2]
[373081569,1752856245795,-460.0,0.00017834,2]
[373081570,1752856245806,-334.6,0.00017834,2]
[373081571,1752856245815,-460.0,0.00017834,2]
[373081572,1752856245824,-477.92,0.00017834,2]
[373081573,1752856245834,-582.44,0.00017834,2]
[373081574,1752856245843,-460.0,0.00017834,2]
[373081575,1752856245853,-460.0,0.00017834,2]
[373081576,1752856245862,-460.0,0.00017834,2]
[373081578,1752856245873,-949.81,0.00017834,2]
[373081580,1752856245883,-1689.1,0.00017834,2]
[373081582,1752856245895,-460.0,0.00017834,2]
[373081584,1752856245904,-577.4,0.00017834,2]
[373081586,1752856245913,-460.0,0.00017834,2]
[373081588,1752856245923,-460.0,0.00017834,2]
[373081590,1752856245932,-471.57,0.00017834,2]
[373081592,1752856245941,-460.0,0.00017835,2]
[373081594,1752856245952,-2734.91,0.00017836,2]
[373081596,1752856245961,-827.63,0.00017836,2]
[373081598,1752856245971,-1208.84,0.00017836,2]
[373081600,1752856245980,-1820.77,0.00017837,2]
[373081602,1752856245990,-460.0,0.00017837,2]
[373081604,1752856245999,-1526.41,0.00017837,2]
[373081606,1752856246008,-2703.23,0.00017837,2]
[373081608,1752856246018,-500.0,0.0001784,2]
[373081610,1752856246027,-934.77,0.0001784,2]
[373081612,1752856246036,-1016.69156912,0.00017849,2]
[373081614,1752856246046,-501.57240577,0.00017856,2]
[373081616,1752856246055,-420.0,0.00017987,2]
[373081618,1752856246065,-420.0,0.00017987,2]
[373081620,1752856246074,-420.0,0.00017987,2]
[373081622,1752856246083,-420.0,0.00017987,2]
[373081624,1752856246093,-420.0,0.00017987,2]
[373081626,1752856246102,-3222.00339136,0.00018,2]
[373081629,1752856246111,-1321.85775104,0.00018003,2]
[373081631,1752856246121,-151.0,0.00018076,2]
[373081633,1752856246130,-151.0,0.00018076,2]
[373081636,1752856246139,-151.0,0.00018076,2]
[373081651,1752856246233,-1680.0,0.00018077,2]
[373081653,1752856246243,-150.0,0.00018092,2]
[373081655,1752856246252,-460.0,0.00018105,2]
[373081657,1752856246262,-1481.43,0.00018105,2]
[373081659,1752856246272,-460.0,0.00018105,2]
[373081661,1752856246281,-160.0,0.00018105,2]
[373081663,1752856246291,-230.89969799,0.00018105,2]
[373081665,1752856246301,-215.63268315,0.00018105,2]
[373081667,1752856246311,-160.0,0.00018105,2]
[373081669,1752856246321,-476.25663856,0.00018105,2]
[373081671,1752856246330,-839.30593155,0.00018105,2]
[373081673,1752856246339,-160.0,0.00018105,2]
[373081675,1752856246349,-160.0,0.00018105,2]
[373081677,1752856246359,-160.0,0.00018105,2]
[373081679,1752856246368,-160.0,0.00018105,2]
[373081681,1752856246377,-525.75194068,0.00018105,2]
[373081683,1752856246387,-12610.43989422,0.00018105,2]
[373081685,1752856246396,-214.4881157,0.00018105,2]
[373081687,1752856246405,-160.0,0.00018105,2]
[373081689,1752856246414,-1820.48,0.00018106,2]
[373081691,1752856246424,-536.49,0.00018106,2]
[373081693,1752856246435,-460.0,0.00018106,2]
[373081695,1752856246444,-1583.05,0.00018106,2]
[373081697,1752856246455,-3439.94,0.00018106,2]
[373081699,1752856246464,-309.87295607,0.00018106,2]
[373081701,1752856246474,-1425.41,0.00018106,2]
[373081703,1752856246483,-460.0,0.00018106,2]
[373081705,1752856246493,-1698.66,0.00018106,2]
[373081707,1752856246501,-314.72044024,0.00018107,2]
[373081709,1752856246511,-402.32591399,0.00018107,2]
[373081711,1752856246522,-460.0,0.00018107,2]
[373081713,1752856246531,-608.16,0.00018107,2]
[373081715,1752856246540,-460.0,0.00018107,2]
[373081717,1752856246550,-236.28238409,0.00018107,2]
[373081719,1752856246559,-489.18642408,0.00018107,2]
[373081721,1752856246568,-598.91,0.00018107,2]
[373081723,1752856246578,-460.0,0.00018107,2]
[373081725,1752856246588,-460.0,0.00018107,2]
[373081727,1752856246598,-460.0,0.00018107,2]
[373081729,1752856246607,-460.0,0.00018107,2]
[373081731,1752856246617,-786.55,0.00018107,2]
[373081734,1752856246626,-460.0,0.00018108,2]
[373081736,1752856246635,-460.0,0.00018108,2]
[373081738,1752856246645,-698.51,0.00018108,2]
[373081739,1752856246654,-460.0,0.00018108,2]
[373081742,1752856246663,-460.0,0.00018108,2]
[373081743,1752856246673,-164.39,0.00018108,2]
[373081746,1752856246682,-477.92,0.00018108,2]
[373081748,1752856246691,-582.44,0.00018108,2]
[373081750,1752856246702,-460.0,0.00018108,2]
[373081752,1752856246712,-460.0,0.00018108,2]
[373081754,1752856246721,-460.0,0.00018108,2]
[373081756,1752856246731,-949.81,0.00018108,2]
[373081758,1752856246740,-1689.1,0.00018108,2]
[373081760,1752856246749,-460.0,0.00018108,2]
[373081762,1752856246758,-577.4,0.00018108,2]
[373081763,1752856246767,-460.0,0.00018108,2]
[373081765,1752856246777,-460.0,0.00018108,2]
[373081768,1752856246786,-471.57,0.00018108,2]
[373081769,1752856246797,-460.0,0.00018109,2]
[373081772,1752856246807,-2734.91,0.0001811,2]
[373081774,1752856246816,-827.63,0.0001811,2]
[373081776,1752856246825,-1208.84,0.0001811,2]
[373081778,1752856246835,-3012.560608,0.00018111,2]
[373081780,1752856246845,-1820.77,0.00018111,2]
[373081782,1752856246854,-460.0,0.00018111,2]
[373081784,1752856246863,-1526.41,0.00018111,2]
[373081786,1752856246874,-2703.23,0.00018111,2]
[373081788,1752856246883,-934.77,0.00018114,2]
[373081790,1752856246893,-500.0,0.00018171,2]
[373081792,1752856246903,-194.0,0.00018247,3]
[373081794,1752856246912,-1321.85775104,0.00018279,2]
[373081796,1752856246921,-1500.0,0.00018341,2]
[373081798,1752856246930,-460.0,0.00018379,2]
[373081800,1752856246940,-1481.43,0.00018379,2]
[373081802,1752856246950,-460.0,0.00018379,2]
[373081804,1752856246960,-11345.56524981,0.0001838,2]
[373081806,1752856246969,-1820.48,0.0001838,2]
[373081808,1752856246978,-536.49,0.0001838,2]
[373081810,1752856246988,-460.0,0.0001838,2]
[373081812,1752856246997,-1583.05,0.0001838,2]
[373081814,1752856247006,-3439.94,0.0001838,2]
[373081816,1752856247015,-1425.41,0.0001838,2]
[373081818,1752856247024,-460.0,0.0001838,2]
[373081820,1752856247033,-1698.66,0.0001838,2]
[373081822,1752856247043,-460.0,0.00018381,2]
[373081824,1752856247051,-608.16,0.00018381,2]
[373081826,1752856247060,-460.0,0.00018381,2]
[373081828,1752856247070,-598.91,0.00018381,2]
[373081830,1752856247079,-460.0,0.00018381,2]
[373081832,1752856247089,-460.0,0.00018381,2]
[373081834,1752856247098,-460.0,0.00018381,2]
[373081836,1752856247108,-302.5230995,0.00018381,2]
[373081838,1752856247117,-786.55,0.00018381,2]
[373081840,1752856247126,-460.0,0.00018382,2]
[373081842,1752856247135,-460.0,0.00018382,2]
[373081844,1752856247144,-698.51,0.00018382,2]
[373081846,1752856247153,-460.0,0.00018382,2]
[373081848,1752856247163,-460.0,0.00018382,2]
[373081850,1752856247175,-477.92,0.00018382,2]
[373081852,1752856247184,-460.0,0.00018382,2]
[373081854,1752856247193,-582.44,0.00018382,2]
[373081856,1752856247204,-460.0,0.00018382,2]
[373081858,1752856247213,-460.0,0.00018382,2]
[373081860,1752856247223,-949.81,0.00018382,2]
[373081862,1752856247232,-1689.1,0.00018382,2]
[373081864,1752856247241,-460.0,0.00018382,2]
[373081866,1752856247251,-577.4,0.00018382,2]
[373081868,1752856247260,-460.0,0.00018382,2]
[373081870,1752856247269,-460.0,0.00018382,2]
[373081872,1752856247278,-471.57,0.00018382,2]
[373081874,1752856247287,-460.0,0.00018383,2]
[373081876,1752856247296,-2734.91,0.00018384,2]
[373081878,1752856247306,-827.63,0.00018384,2]
[373081880,1752856247315,-1208.84,0.00018384,2]
[373081882,1752856247324,-1820.77,0.00018385,2]
[373081884,1752856247333,-460.0,0.00018385,2]
[373081886,1752856247342,-1526.41,0.00018385,2]
[373081888,1752856247351,-2703.23,0.00018385,2]
[373081890,1752856247361,-934.77,0.00018388,2]
[373081892,1752856247370,-160.0,0.00018453,2]
[373081894,1752856247379,-4586.0,0.00018465,2]
[373081897,1752856247389,-151.0,0.00018496,2]
[373081898,1752856247398,-151.0,0.00018496,2]
[373081901,1752856247407,-1321.85775104,0.00018555,2]
[373081903,1752856247417,-4586.0,0.00018576,2]
[373081905,1752856247426,-4586.0,0.00018652,2]
[373081907,1752856247435,-218.77220608,0.00018653,2]
[373081909,1752856247444,-1481.43,0.00018653,2]
[373081910,1752856247455,-460.0,0.00018653,2]
[373081913,1752856247464,-1820.48,0.00018654,2]
[373081915,1752856247474,-536.49,0.00018654,2]
[373081917,1752856247483,-169.17935151,0.00018654,2]
[373081918,1752856247492,-1583.05,0.00018654,2]
[373081921,1752856247501,-3439.94,0.00018654,2]
[373081923,1752856247511,-1425.41,0.00018654,2]
[373081924,1752856247520,-460.0,0.00018654,2]
[373081927,1752856247529,-1698.66,0.00018654,2]
[373081929,1752856247539,-470.21121252,0.00018655,2]
[373081931,1752856247548,-608.16,0.00018655,2]
[373081933,1752856247557,-460.0,0.00018655,2]
[373081934,1752856247566,-598.91,0.00018655,2]
[373081937,1752856247575,-460.0,0.00018655,2]
[373081939,1752856247584,-460.0,0.00018655,2]
[373081941,1752856247594,-460.0,0.00018655,2]
[373081942,1752856247603,-786.55,0.00018655,2]
[373081944,1752856247613,-460.0,0.00018656,2]
[373081946,1752856247622,-460.0,0.00018656,2]
[373081948,1752856247631,-698.51,0.00018656,2]
[373081951,1752856247640,-460.0,0.00018656,2]
[373081953,1752856247649,-460.0,0.00018656,2]
[373081955,1752856247658,-477.92,0.00018656,2]
[373081956,1752856247667,-582.44,0.00018656,2]
[373081958,1752856247676,-460.0,0.00018656,2]
[373081960,1752856247685,-460.0,0.00018656,2]
[373081962,1752856247695,-460.0,0.00018656,2]
[373081965,1752856247706,-949.81,0.00018656,2]
[373081967,1752856247716,-1689.1,0.00018656,2]
[373081969,1752856247725,-460.0,0.00018656,2]
[373081971,1752856247734,-577.4,0.00018656,2]
[373081973,1752856247743,-460.0,0.00018656,2]
[373081975,1752856247752,-471.57,0.00018656,2]
[373081976,1752856247761,-468.06,0.00018657,2]
[373081978,1752856247770,-2734.91,0.00018658,2]
[373081981,1752856247779,-827.63,0.00018658,2]
[373081982,1752856247789,-1208.84,0.00018658,2]